Cogmind - Beta 17 @@@ ROGUE MODE // 2026.06.26 @ 00:39:55 Player: LN-5RVR Result: Self-destructed Performance ------------- Evolutions (2) 1000 Regions Visited (4) 800 Robots Destroyed (29) 145 Value Destroyed (780) 780 Prototype IDs (1) 20 Alien Tech Used (0) 0 Bonus (-8) -8 TOTAL SCORE: 2737 Bonus ------- Friendly Fire -8 Cogmind --------- Core Integrity 52/550 Matter 288/300 Energy 100/100 System Corruption 0% Temperature Cool (0) Movement Flying (120) Ox1 Location -8/Materials Parts ------- > --- POWER (1) -------- (None) > --- PROPULSION (4) --- Flight Unit > --- UTILITY (4) ------ Small Storage Unit Hacking Suite > --- WEAPON (2) ------- Datajack > --- INVENTORY (8) ---- Light Ion Engine Hover Unit Weight Redist. System Medium Armor Plating Peak State ------------ > --- POWER ------------ Cooled Ion Engine > --- PROPULSION ------- VSS Leg VSS Leg > --- UTILITY ---------- Small Storage Unit Hacking Suite > --- WEAPON ----------- Heavy Hammer > --- INVENTORY -------- Light Ion Engine Hover Unit Flight Unit Weight Redist. System Medium Armor Plating [Rating: 15] Favorites ----------- Power Light Ion Engine Engine Light Ion Engine Propulsion Light Treads Treads Light Treads Leg VSS Leg Hover Unit Hover Unit Flight Unit Flight Unit Utility Small Storage Unit Device Structural Scanner Storage Small Storage Unit Hackware Hacking Suite Protection Light Armor Plating Weapon Light Assault Rifle Ballistic Gun Light Assault Rifle Special Weapon Enhanced Flamer Impact Weapon Heavy Hammer Special Melee Weapon Datajack Build | -11 -10 -10 -9 -8 ------- Run | Yrd Mat Min Mat Mat Slots Evolved 4 | . . . 2 2 Power . | . . . . . Propulsion 2 | . . . 2 . Utility 2 | . . . . 2 Weapon . | . . . . . Parts Attached 31 | 6 . 4 19 2 Power 4 | 1 . . 3 . Engine 4 | 1 . . 3 . Core . | . . . . . Reactor . | . . . . . Propulsion 14 | 2 . . 11 1 Treads 2 | 2 . . . . Leg 2 | . . . 2 . Wheel . | . . . . . Hover 1 | . . . 1 . Flight 9 | . . . 8 1 Utility 6 | 1 . 1 4 . Device 1 | . . 1 . . Storage 1 | 1 . . . . Processor . | . . . . . Hackware 2 | . . . 2 . Protection 2 | . . . 2 . Artifact . | . . . . . Weapon 7 | 2 . 3 1 1 Energy Gun . | . . . . . Energy Cannon . | . . . . . Ballistic Gun 3 | 2 . 1 . . Ballistic Cannon . | . . . . . Launcher . | . . . . . Special Weapon 1 | . . 1 . . Impact Weapon 1 | . . . 1 . Slashing Weapon . | . . . . . Piercing Weapon . | . . . . . Special Melee Weapon 2 | . . 1 . 1 Unidentified Prototypes 1 | . . . 1 . Parts Lost 16 | . 1 . 10 5 Power 2 | . . . 1 1 Propulsion 8 | . . . 5 3 Utility 2 | . . . 2 . Weapon 4 | . 1 . 2 1 Highest Loss Streak 5 | . 1 . 5 5 To Critical Strikes . | . . . . . Average Backups 5 | 1 4 5 7 5 Power 1 | . 1 1 2 1 Propulsion 2 | . 2 2 3 1 Utility . | . . . 1 2 Weapon . | . 1 1 . . Tool/Special . | . . . . . Unused Backups 7 | . . . 5 2 Power 2 | . . . 1 1 Propulsion 3 | . . . 3 . Utility 2 | . . . 1 1 Weapon . | . . . . . Tool/Special . | . . . . . Average Slot Usage (%) 79 | . 75 90 88 51 Engine 11 | . 14 14 10 7 Treads 13 | . 28 28 1 . Leg 3 | . . . . 15 Flight 13 | . . . 37 . Device 4 | . . 12 6 . Storage 12 | . 14 14 11 9 Hackware 1 | . . . . 9 Protection 1 | . . . 2 . Ballistic Gun 8 | . 18 9 3 . Special Weapon 2 | . . 5 2 . Impact Weapon 4 | . . . 8 8 Special Melee Weapon 2 | . . 5 1 . Peak Build Rating 15 | 6 6 9 15 15 Average Rating 9 | 4 5 7 10 13 On Entrance 7 | . 6 5 9 15 Avg Prop Armor Cover (%) 7 | . . . 7 . Naked Turns . | . . . . . Heaviest Build 16 | 11 11 12 16 16 Greatest Support 40 | 40 40 40 40 24 Greatest Overweight (x) 2 | . . . 1 2 Average Overweight (x) . | . . . . . Largest Inventory Capacity 8 | 8 8 8 8 8 Average Capacity 7 | 7 8 8 8 8 Most Carried 8 | 4 5 6 8 6 Average Carried 5 | 1 4 5 7 5 Final Capacity 8 | 8 8 8 8 8 Final Carried 6 | 4 5 6 5 4 Class Distribution -------------------- 70% | Mutant 29% | Sprinter Dominant Class ---------------- Mutant | -10/Materials Mutant | -10/Mines Sprinter | -9/Materials Mutant | -8/Materials Resources | -11 -10 -10 -9 -8 ----------- Run | Yrd Mat Min Mat Mat Matter Collected 611 | 35 141 190 187 58 Remotely . | . . . . . Salvage Created 841 | . 227 47 286 281 Parts 29 | . 14 2 8 5 Haulers Intercepted 2 | . . . 1 1 Recyclers Shooed . | . . . . . Parts Field Recycled . | . . . . . Retrieved Matter . | . . . . . Parts Self-Destructed . | . . . . . Prevented . | . . . . . Parts Restored . | . . . . . Kills | -11 -10 -10 -9 -8 ------- Run | Yrd Mat Min Mat Mat Combat Hostiles Destroyed 23 | . 6 1 10 6 Melee 8 | . 1 . 4 3 Guns 6 | . 5 1 . . Classes Destroyed 5 | . 1 . 4 . Hauler 2 | . . . 1 1 Watcher 4 | . . . 4 . Swarmer 8 | . . . 7 1 Grunt 11 | . 6 1 1 3 Sentry 4 | . . . 2 2 Best Kill Streak 3 | . 2 1 3 2 Combat Bots Only 3 | . 2 1 3 2 Max Kills in Single Turn 1 | . 1 1 1 1 Gunslinging . | . . . . . Exploded . | . . . . . Melee 1 | . 1 . 1 1 Uniques/NPCs Destroyed . | . . . . . Combat | -11 -10 -10 -9 -8 -------- Run | Yrd Mat Min Mat Mat Hostile Shots Fired 295 | . 32 7 104 152 Missed 90 | . 7 3 30 50 Hits 205 | . 25 4 74 102 Projectile 205 | . 25 4 74 102 Critical Strikes 3 | . . . 1 2 Damage Taken 2180 | . 301 68 781 1030 Core 766 | . 46 . 222 498 Absorbed by Shields . | . . . . . Core Remaining (%) 75 | 100 . 81 44 . Volleys Fired 49 | . 24 7 18 . Largest 2 | . 2 1 2 . Hottest 100 | . 40 20 100 . Shots Fired 72 | . 39 7 26 . Gun 58 | . 39 7 12 . Cannon . | . . . . . Launcher . | . . . . . Special 14 | . . . 14 . Kinetic 58 | . 39 7 12 . Thermal 14 | . . . 14 . Explosive . | . . . . . Electromagnetic . | . . . . . Robot Hit Streak 13 | . 8 3 13 . Robot Miss Streak 2 | . 2 1 2 . Penetration Max . | . . . . . Secondary Targets 1 | . 1 . . . Max Gunslinging Chain 1 | . 1 . . . Shots Hit Robots 111 | . 27 11 45 28 Core Hits 26 | . 13 4 7 2 Critical Kills . | . . . . . Critical Parts Destroyed 10 | . . 1 5 4 Critical Strikes 12 | . . 1 6 5 Burn 1 | . . . 1 . Destroy 1 | . . 1 . . Smash 10 | . . . 5 5 Melee Attacks 88 | . . 6 46 36 Impact 81 | . . . 46 35 Slashing . | . . . . . Piercing . | . . . . . Sneak Attacks 11 | . . 6 2 3 Combat Hostiles 3 | . . . 1 2 Follow-up Attacks . | . . . . . Damage Inflicted 2824 | . 278 51 1325 1170 Guns 395 | . 276 51 68 . Cannons . | . . . . . Explosions . | . . . . . Melee 2295 | . . . 1125 1170 Ramming 2 | . 2 . . . Kinetic 395 | . 276 51 68 . Thermal 132 | . . . 132 . Explosive . | . . . . . Electromagnetic . | . . . . . Impact 2295 | . . . 1125 1170 Slashing . | . . . . . Piercing . | . . . . . Highest Corruption . | . . . . . Average Corruption . | . . . . . Corruption Purged . | . . . . . Corruption Blocked . | . . . . . Overload Shots . | . . . . . Overflow Damage 791 | . . . 476 315 Projectiles . | . . . . . Explosions . | . . . . . Melee 791 | . . . 476 315 Knockbacks 6 | . . . 3 3 Impact 5 | . . . 2 3 Kinetic . | . . . . . Secondary 1 | . . . 1 . Self-Inflicted Damage . | . . . . . Shots . | . . . . . Rammed 1 | . 1 . . . Targets Rammed 2 | . 2 . . . Kicked . | . . . . . Crushed 1 | . 1 . . . Highest Temperature 304 | . 12 9 304 1 Average Temperature 84 | . 7 9 100 1 Received Heat Transfer 654 | . 171 36 231 216 Effects 1 | . . . 1 . Interference 1 | . . . 1 . Siege Activations . | . . . . . Martial Activations . | . . . . . Shielding Activations . | . . . . . Robots Disrupted . | . . . . . Combat Hostiles . | . . . . . Robots Corrupted 12 | . . . 8 4 Combat Hostiles 8 | . . . 5 3 Parts Fried 8 | . . . 7 1 Impact Corruptions 33 | . . . 20 13 Robots Melted 1 | . . . 1 . Combat Hostiles 1 | . . . 1 . Parts Melted 1 | . . . 1 . Heat Transferred 1120 | . . . 1120 . Parts Sabotaged . | . . . . . Parts Stolen . | . . . . . Parts Stripped . | . . . . . Power Chain Reactions . | . . . . . Alert | -11 -10 -10 -9 -8 ------- Run | Yrd Mat Min Mat Mat Maximum Alert Level 1 | . . . 1 . Low Security (%) 92 | 100 100 100 76 100 Level 1 7 | . . . 23 . Level 2 . | . . . . . Level 3 . | . . . . . Level 4 . | . . . . . Level 5 . | . . . . . High Security . | . . . . . Max Security . | . . . . . Peak Influence 289 | . 78 30 289 147 Initial 114 | . . . . 114 Average 49 | . 20 1 79 104 Influence Increases 1074 | . 150 30 636 258 Destroy 0b10 Robot/C 460 | . 120 20 200 120 Destroy 0b10 Robot/NC 30 | . . . 25 5 Destroy Leader 122 | . 20 10 50 42 Successful Hack 37 | . 10 . 27 . Destroy Structure 5 | . . . 4 1 Partial Spotted 90 | . . . 75 15 Lose Combat Pursuer 330 | . . . 255 75 Influence Decreases 942 | . 150 30 364 398 Entered New Map 158 | . . . . 158 Time Decay 614 | . 140 30 254 190 Lost Part 160 | . 10 . 100 50 Lost Ally 10 | . . . 10 . Squads Dispatched 3 | . 1 . . 2 Investigation 2 | . 1 . . 1 Extermination . | . . . . . Reinforcement 1 | . . . . 1 Assault . | . . . . . Garrison . | . . . . . Intercept . | . . . . . Searches Triggered . | . . . . . Construction Impeded . | . . . . . Haulers Reinforced . | . . . . . Active Scanning Responses . | . . . . . Cargo Convoy Interrupts . | . . . . . Stealth | -11 -10 -10 -9 -8 --------- Run | Yrd Mat Min Mat Mat Distress Signals 3 | . . . 2 1 Communications Jammed . | . . . . . Distress Signals . | . . . . . Times Spotted 65 | . 10 2 35 18 Peak Tracking Total 8 | . 4 2 6 8 Tactical Retreats 9 | . . . 7 2 Traps | -11 -10 -10 -9 -8 ------- Run | Yrd Mat Min Mat Mat Traps Triggered . | . . . . . Indirectly . | . . . . . Trap Hack Attempts . | . . . . . Triggered . | . . . . . Disarmed . | . . . . . Reprogrammed . | . . . . . Reused . | . . . . . Traps Extracted . | . . . . . Installed . | . . . . . Triggered . | . . . . . Machines | -11 -10 -10 -9 -8 ---------- Run | Yrd Mat Min Mat Mat Machines Disabled . | . . . . . Max in Single Turn . | . . . . . Machines Repaired . | . . . . . Machines Dismantled . | . . . . . Machines Sabotaged . | . . . . . Overloaded Fab Kills . | . . . . . Hacking | -11 -10 -10 -9 -8 --------- Run | Yrd Mat Min Mat Mat Machines Accessed 12 | . 2 1 7 2 Terminals 9 | . 2 1 5 1 Fabricators . | . . . . . Repair Stations 1 | . . . 1 . Recycling Units 1 | . . . 1 . Scanalyzers 1 | . . . . 1 Garrison Access . | . . . . . Total Hacks 30 | . 6 1 17 6 Successful 14 | . 5 . 6 3 Failed 15 | . 1 1 11 2 Catastrophic 4 | . . 1 3 . Database Lockouts 1 | . . . . 1 Manual 20 | . 3 . 15 2 Terminals 19 | . 6 1 10 2 Fabricators . | . . . . . Repair Stations 3 | . . . 3 . Recycling Units 4 | . . . 4 . Scanalyzers 4 | . . . . 4 Garrison Access . | . . . . . Terminal Hacks 4 | . 3 . 1 . Record 3 | . 3 . . . Zone Layout 1 | . . . 1 . Fabricator Hacks . | . . . . . Repair Station Hacks 1 | . . . 1 . Scan Component 1 | . . . 1 . Recycling Unit Hacks . | . . . . . Scanalyzer 3 | . . . . 3 Insert Component 1 | . . . . 1 Analyze 1 | . . . . 1 Retrieve Study 1 | . . . . 1 Garrison Access Hacks . | . . . . . Unauthorized Hacks 6 | . 2 . 4 . Terminals 3 | . 2 . 1 . Assimilate 2 | . 1 . 1 . Detonate 1 | . 1 . . . Fabricators . | . . . . . Repair Stations 1 | . . . 1 . Mechanics 1 | . . . 1 . Recycling Units 2 | . . . 2 . Reject 1 | . . . 1 . Mask 1 | . . . 1 . Scanalyzers . | . . . . . Garrison Access . | . . . . . Data Cores Recovered . | . . . . . Used . | . . . . . Hacking Detections 9 | . 1 1 6 1 Full Trace Events 2 | . 1 . . 1 Feedback Events . | . . . . . Feedback Blocked . | . . . . . Robot Schematics Acquired . | . . . . . Robots Built . | . . . . . Authchips . | . . . . . Time . | . . . . . Total Robot Build Rating . | . . . . . Part Schematics Acquired 1 | . . . . 1 Parts Built . | . . . . . Authchips . | . . . . . Time . | . . . . . Total Part Build Rating . | . . . . . Part Studies Acquired 1 | . . . . 1 Parts Repaired . | . . . . . Time . | . . . . . Parts Recycled . | . . . . . Recycled Matter . | . . . . . Retrieved Matter . | . . . . . Retrieved Components . | . . . . . Parts Scanalyzed 1 | . . . . 1 Part Schematics Acquired 1 | . . . . 1 Parts Damaged . | . . . . . Bothacking | -11 -10 -10 -9 -8 ------------ Run | Yrd Mat Min Mat Mat Used RIF Installer . | . . . . . Robots Hacked 1 | . . 1 . . Non-combat 1 | . . 1 . . Combat . | . . . . . Robot Hacks Applied 1 | . . 1 . . no_distress 1 | . . 1 . . Relay Couplers Released . | . . . . . Fabnet Peak Effective % . | . . . . . Robots Rewired . | . . . . . Allies Hacked . | . . . . . Hacks Repelled . | . . . . . Allies | -11 -10 -10 -9 -8 -------- Run | Yrd Mat Min Mat Mat Total Allies 1 | . . . 1 . Largest Group 1 | . . . 1 . Highest-Rated Group 10 | . . . 10 . Highest-Rated Ally 10 | . . . 10 . Total Orders . | . . . . . Ally Attacks . | . . . . . Total Damage . | . . . . . Kills . | . . . . . Allies Corrupted . | . . . . . Allies Melted . | . . . . . Intel | -11 -10 -10 -9 -8 ------- Run | Yrd Mat Min Mat Mat Active Infowar (turns) 847 | . . 472 375 . Structural 847 | . . 472 375 . Robot Analysis Total . | . . . . . Derelict Logs Recovered . | . . . . . Drone Launches . | . . . . . Drone Recoveries . | . . . . . Exploration | -11 -10 -10 -9 -8 ------------- Run | Yrd Mat Min Mat Mat Turns Passed 2315 | 70 567 520 764 394 Spaces Moved 1834 | 38 211 304 1007 274 Core 3 | 2 . . . 1 Treads 570 | 36 211 304 19 . Legs 257 | . . . 16 241 Wheels . | . . . . . Hover 11 | . . . 11 . Flight 993 | . . . 961 32 Fastest Speed 29 | 50 160 160 29 37 Average Speed 80 | 154 160 160 35 84 Slowest Speed 160 | 160 160 160 160 150 Overloaded Moves . | . . . . . Propulsion Burnouts . | . . . . . Robots Hopped 2 | . . . 1 1 Potential Cave-ins . | . . . . . Cave-ins Triggered . | . . . . . Exploration Rate (%) 36 | 4 42 73 47 16 Regions Visited 4 Branch Regions 1 Pre-discovered Areas . | . . . . . Known Exits Taken . | . . . . . Unknown Exits Taken 4 | 1 1 1 1 . Scrap Searched 3 | . . 3 . . Spaces Dug 5 | . . . 4 1 Terrain Destroyed 5 | . . . 4 1 Melee 5 | . . . 4 1 Projectile . | . . . . . AOE . | . . . . . Terrain Rammed . | . . . . . Walls Destroyed . | . . . . . Machines Disabled . | . . . . . Actions | -11 -10 -10 -9 -8 --------- Run | Yrd Mat Min Mat Mat Total 2456 | 47 405 329 1302 373 Wait 403 | . 168 6 169 60 Move 1826 | 37 210 303 1004 272 Hop 2 | . . . 1 1 Pick Up 28 | 4 1 2 20 1 Fast Attach 9 | 6 . 1 1 1 Attach 19 | . . 2 15 2 Detach 4 | . . 1 3 . Swap 12 | . . 1 11 . Drop 14 | . . . 14 . Fire 49 | . 24 7 18 . Melee 88 | . . 6 46 36 Ram . | . . . . . Kick . | . . . . . Crush 2 | . 2 . . . Escape Stasis . | . . . . . Rewire . | . . . . . Trap . | . . . . . Miscellaneous . | . . . . . Route ------- -11/Scrapyard -10/Materials -10/Mines (discovered 2 exits: *Mat x2) -9/Materials -8/Materials History --------- Turn | Location | Event 36 | -11/Scrapyard | Discovered new exit (range 15) 71 | -11/Scrapyard | Entered Materials 300 | -10/Materials | Build established: Mutant 563 | -10/Materials | Discovered new exit (range 12) 638 | -10/Materials | Entered Mines 794 | -10/Mines | Discovered new exit (range 10) 801 | -10/Mines | Received a Rocket Launcher from a helpful Derelict 931 | -10/Mines | A weapon hastily lodged in a ceiling crevice suddenly fell to the ground 1144 | -10/Mines | Discovered new exit (range 6) 1158 | -10/Mines | Entered Materials 1158 | -9/Materials | Evolved 2 slots: Propulsion x2 1384 | -9/Materials | Discovered new exit (range 6) 1632 | -9/Materials | Build established: Sprinter 1782 | -9/Materials | Core integrity fell below 50% 1904 | -9/Materials | Lost 5 parts (1p2n1u1w) 1922 | -9/Materials | Entered another Materials area 1922 | -8/Materials | Evolved 2 slots: Utility x2 2161 | -8/Materials | Build established: Mutant 2221 | -8/Materials | Central database locked down 2278 | -8/Materials | Core integrity fell below 50% 2293 | -8/Materials | Core integrity fell below 20% 2316 | -8/Materials | Self-destructed Last Messages --------------- 02268_ VSS Leg destroyed. 02277_ Y-45 Defender suffers critical hit (Smash). 02277_ Destroyed Lgt. Armor Plating. 02277_ Y-45 Defender system corrupted by crushing effect. 02281_ S-10 Pest destroyed. 02281_ Y-45 Defender destroyed. 02284_ K-01 Serf collects debris. 02286_ S-10 Pest misfires. 02287_ S-10 Pest destroyed. 02288_ K-01 Serf collects debris. 02292_ Acquired Flight Unit. 02293_ Acquired 8 matter. 02294_ K-01 Serf collects debris. 02297_ Hvy. Hammer+ destroyed. 02298_ K-01 Serf collects debris. 02310_ Jacked S-10 Pest... 02310_ Command string: disable_weapons 02314_ Flight Unit destroyed. Map ----- +----------------------------------------------------+ | ?????????????????????????????????????????????????? | | ?????????????????????????????????????????????????? | | ?????????????????????????????????????????????????? | | ?????????????????????????????????????????????????? | | ?????????????????????????????????????????????????? | | ?????????????????????????????????????????????????? | | ?????????????????????????????????????????????????? | | ?????????????" ???????????????????????????????? | | ???????????"" ???????????????????????????????? | | ????????? ???????????????????????????????? | | ???????? ! ???????????????????????????????? | | ??????? ???????????????????????????????? | | ????????]! #???????????????????????????????? | | ????????? #???????????????????????????????? | | ?????????? ! #???????????????????????????????? | | ??????????? ???????????????????????????????? | | ???????????? #???????????????????????????????? | | ????????????? ! ###########?????????????????????? | | ?????????????# # #?????????????????????? | | ?????????????# # #?????????????????????? | | ?????????????# # a #?????????????????????? | | ?????????????# # """s #?????????????????????? | | ?????????????# / """""s#?????????????????????? | | ?????????????# # """""s#?????????????????????? | | ???#####+##### # """""s#?????????????????????? | | ???# [%* + # """@s#?????????????????????? | | ???# *=%[ ### ###########?????????????????????? | | ???# [ """ #?# #???????????????????????????????? | | ???# """"" #?# #???????????????????????????????? | | ???# """"" #?#%#???????????????????????????????? | | ???# """"" #?# #???????????????????????????????? | | ???# """ #?# #???????????????????????????????? | | ???# ???? #?# #???????????????????????????????? | | ???#############/#???????????????????????????????? | | ???# #???????????????????????????????? | | ???# """" "" #???????????????????????????????? | | ???# """" """#???????????????????????????????? | | ???# """" S"#???????????????????????????????? | | ???# ########????????????????????????? | | ???# !%= # #????????????????????????? | | ???###+#####+##### #??????##????????????????? | | ###### #??# + ####### #????????????????? | | # #??# #### # #????????????????? | | ! # #??# #??# # """ #????????????????? | | # #??# #??# # """ #????????????????? | | """ # #### #######+### """ ! #????????????????? | | """ #%[ # #????????????????? | | """ +% + #????????????????? | | # # #????????????????? | | ###### ######### # !/ #????????????????? | +----------------------------------------------------+ Best States ------------- Heat Dissipation 31 Energy Generation 14 Energy Capacity 280 Matter Stores 300 Matter Capacity 300 Sight Range 16 Terrain Scan Density 10 Armor Coverage 150 Evasion (%) 64 Recoil Reduction 2 Offensive Hacking 10 Item Schematics ----------------- Datajack | -8/Materials | Scanalyzed Robot Schematics ------------------ None Fabricated ------------ Nothing Repaired ---------- Nothing Studied --------- Hvy. Hammer | -8/Materials | Hacked Alien Tech Used ----------------- None Achievements -------------- None Challenges ------------ None Game ------ Seed BarragePitchforkDriveblaster Manual? 0 Play Time 00:27:46 Cumulative 40.3 hours Start 2026.06.26 @ 00:11:16 End 2026.06.26 @ 00:39:55 Sessions 1 Manual Loads 0 Difficulty Rogue Special Mode None Game No. 56 Rogue 24 Adventurer 32 Explorer 0 Win Type - Total 0 Types 0/0/0/0/0/0/0/0/0/0 Lore% 15 Gallery% 22 Achievement% 16 Wizard Run 0 Options --------- Layout 1 ASCII 0 Keyboard 0 Movement Numpad Keybinds 0 Fullscreen 1 Font 24/Smallcaps Map View 50x35 Zoom Use 0% Tactical HUD 1 Map Filters NONE Filters NONE Steam 1 RUN: 545977c1-d885-4b82-a778-3ecbcd5d90b3